[Event "Pohár mìsta Øíèany 2018"]
[Site "Øíèany, Czech Republic"]
[Date "2018.08.29"]
[Round "6.1"]
[White "Plát, Vojtìch"]
[Black "Pùlpán, Jakub"]
[Result "1/2-1/2"]
[ECO "B50"]
[WhiteElo "2523"]
[BlackElo "2400"]
[PlyCount "41"]
[EventDate "2018.??.??"]
[TimeControl "2+30"]
[WhiteClock "1:00:31"]
[BlackClock "0:37:19"]

1. e4 {[%emt 0:00:02]} c5 {[%emt 0:00:19]} 2. Nf3 {[%emt 0:00:23]} d6 {[%emt 0:
00:22]} 3. c3 {[%emt 0:00:35]} Nf6 {[%emt 0:00:39]} 4. Be2 {[%emt 0:00:08]} g6
{[%emt 0:01:20]} 5. O-O {[%emt 0:00:22]} Bg7 {[%emt 0:00:17]} 6. e5 {[%emt 0:
02:07]} dxe5 {[%emt 0:01:27]} 7. Nxe5 {[%emt 0:00:24]} O-O {[%emt 0:00:57]} 8.
Bf3 {[%emt 0:01:19]} Nfd7 {[%emt 0:10:39]} 9. Nxd7 {[%emt 0:03:28]} Qxd7 {
[%emt 0:04:30]} 10. d3 {[%emt 0:00:26]} Nc6 {[%emt 0:01:24]} 11. Be3 {[%emt 0:
00:17]} b6 {[%emt 0:07:34]} 12. d4 {[%emt 0:02:56]} cxd4 {[%emt 0:02:00]} 13.
Bxd4 {[%emt 0:07:25]} Nxd4 {[%emt 0:05:07]} 14. Bxa8 {[%emt 0:00:28]} Ba6 {
[%emt 0:00:14]} 15. Be4 {[%emt 0:00:16]} Bxf1 {[%emt 0:01:28]} 16. Qxf1 {[%emt
0:00:10]} Ne6 {[%emt 0:10:23]} 17. Na3 {[%emt 0:03:10]} Rd8 {[%emt 0:08:52]}
18. Bc2 {[%emt 0:06:12]} Qc6 {[%emt 0:02:08]} 19. Rd1 {[%emt 0:03:43]} Rxd1 {
[%emt 0:01:27]} 20. Bxd1 {[%emt 0:00:09]} Nf4 {[%emt 0:02:07]} 21. Bf3 {[%emt
0:06:22]} 1/2-1/2

[Event "Pohár mìsta Øíèany 2018"]
[Site "Øíèany, Czech Republic"]
[Date "2018.08.29"]
[Round "6.2"]
[White "Vojta, Tomáš"]
[Black "Gregor, Jiøí"]
[Result "1-0"]
[ECO "D00"]
[WhiteElo "2348"]
[BlackElo "2262"]
[PlyCount "93"]
[EventDate "2018.??.??"]
[TimeControl "2+30"]
[WhiteClock "0:03:35"]
[BlackClock "0:05:19"]

1. d4 {[%emt 0:00:07]} Nf6 {[%emt 0:00:31]} 2. c3 {[%emt 0:00:48]} d5 {[%emt 0:
01:23]} 3. Bf4 {[%emt 0:00:31]} Bf5 {[%emt 0:03:22]} 4. e3 {[%emt 0:01:56]} c6
{[%emt 0:00:26]} 5. Nd2 {[%emt 0:02:24]} Nbd7 {[%emt 0:00:15]} 6. h3 {[%emt 0:
03:53]} h6 {[%emt 0:00:56]} 7. Ngf3 {[%emt 0:01:13]} e6 {[%emt 0:00:11]} 8. Be2
{[%emt 0:02:23]} Be7 {[%emt 0:00:07]} 9. O-O {[%emt 0:04:25]} O-O {[%emt 0:00:
40]} 10. b4 {[%emt 0:05:00]} a5 {[%emt 0:06:04]} 11. a3 {[%emt 0:00:40]} Ra7 {
[%emt 0:05:13]} 12. Qc1 {[%emt 0:06:03]} b6 {[%emt 0:10:31]} 13. Qb2 {[%emt 0:
02:39]} Qa8 {[%emt 0:03:02]} 14. b5 {[%emt 0:07:45]} c5 {[%emt 0:06:42]} 15. c4
{[%emt 0:07:25]} Ne4 {[%emt 0:10:46]} 16. Nxe4 {[%emt 0:05:56]} Bxe4 {[%emt 0:
00:54]} 17. Nd2 {[%emt 0:02:24]} dxc4 {[%emt 0:07:22]} 18. Nxe4 {[%emt 0:00:52]
} Qxe4 {[%emt 0:00:07]} 19. Bxc4 {[%emt 0:09:40]} Bf6 {[%emt 0:02:15]} 20. f3 {
[%emt 0:01:45]} Qg6 {[%emt 0:03:52]} 21. Rad1 {[%emt 0:03:51]} cxd4 {[%emt 0:
05:14]} 22. exd4 {[%emt 0:00:16]} Rd8 {[%emt 0:06:03]} 23. Qb3 {[%emt 0:05:35]}
Be7 {[%emt 0:01:58]} 24. g4 {[%emt 0:03:05]} Qf6 {[%emt 0:03:50]} 25. Bg3 {
[%emt 0:03:56]} Nf8 {[%emt 0:00:21]} 26. Be5 {[%emt 0:01:55]} Qh4 {[%emt 0:00:
13]} 27. Kg2 {[%emt 0:01:00]} Bd6 {[%emt 0:01:06]} 28. f4 {[%emt 0:01:25]} Rad7
{[%emt 0:00:20]} 29. d5 {[%emt 0:01:27]} Bxe5 {[%emt 0:08:30]} 30. fxe5 {[%emt
0:00:06]} Ng6 {[%emt 0:01:34]} 31. dxe6 {[%emt 0:06:31]} Nf4+ {[%emt 0:02:11]}
32. Rxf4 {[%emt 0:00:54]} Rxd1 {[%emt 0:00:16]} 33. exf7+ {[%emt 0:01:06]} Kf8
{[%emt 0:00:18]} 34. Rf2 {[%emt 0:01:41]} R1d2 {[%emt 0:01:32]} 35. Be2 {[%emt
0:00:23]} R8d3 {[%emt 0:05:34]} 36. Qxd3 {[%emt 0:00:16]} Rxd3 {[%emt 0:00:06]}
37. Bxd3 {[%emt 0:00:02]} Qd8 {[%emt 0:00:20]} 38. Bc4 {[%emt 0:04:21]} Qd4 {
[%emt 0:00:19]} 39. e6 {[%emt 0:00:15]} Qe4+ {[%emt 0:00:14]} 40. Rf3 {[%emt 0:
00:31]} a4 {[%emt 0:01:22]} 41. Bd5 {[%emt 0:01:18]} Qe2+ {[%emt 0:00:15]} 42.
Rf2 {[%emt 0:00:22]} Qe5 {[%emt 0:00:08]} 43. Rd2 {[%emt 0:00:34]} Qe3 {[%emt
0:00:13]} 44. Rc2 {[%emt 0:00:18]} Qe5 {[%emt 0:02:30]} 45. Rd2 {[%emt 0:00:03]
} Ke7 {[%emt 0:00:06]} 46. Bf3 {[%emt 0:00:21]} Kf8 {[%emt 0:00:09]} 47. Rf2 {
[%emt 0:00:03]} 1-0

[Event "Pohár mìsta Øíèany 2018"]
[Site "Øíèany, Czech Republic"]
[Date "2018.08.29"]
[Round "6.3"]
[White "Kulhánek, Tomáš"]
[Black "Petr, Jakub"]
[Result "1/2-1/2"]
[ECO "B51"]
[WhiteElo "2314"]
[BlackElo "2145"]
[PlyCount "27"]
[EventDate "2018.??.??"]
[TimeControl "2+30"]
[WhiteClock "1:18:38"]
[BlackClock "1:10:58"]

1. e4 {[%emt 0:00:04]} c5 {[%emt 0:00:20]} 2. Nf3 {[%emt 0:00:07]} d6 {[%emt 0:
00:07]} 3. Bb5+ {[%emt 0:00:06]} Nd7 {[%emt 0:00:13]} 4. c3 {[%emt 0:00:16]}
Ngf6 {[%emt 0:02:40]} 5. Qe2 {[%emt 0:00:13]} a6 {[%emt 0:00:47]} 6. Ba4 {
[%emt 0:00:06]} e5 {[%emt 0:03:40]} 7. O-O {[%emt 0:03:22]} Be7 {[%emt 0:01:26]
} 8. d4 {[%emt 0:00:32]} Qc7 {[%emt 0:01:00]} 9. dxe5 {[%emt 0:02:09]} dxe5 {
[%emt 0:02:43]} 10. Bg5 {[%emt 0:01:38]} b5 {[%emt 0:02:23]} 11. Bc2 {[%emt 0:
00:17]} O-O {[%emt 0:00:31]} 12. a4 {[%emt 0:01:29]} Bb7 {[%emt 0:07:16]} 13.
Nbd2 {[%emt 0:04:23]} c4 {[%emt 0:02:56]} 14. Rfe1 {[%emt 0:04:10]} 1/2-1/2

[Event "Pohár mìsta Øíèany 2018"]
[Site "Øíèany, Czech Republic"]
[Date "2018.08.29"]
[Round "6.4"]
[White "Svatoš, Jan"]
[Black "Skalický, Tomáš"]
[Result "1-0"]
[ECO "B07"]
[WhiteElo "2264"]
[BlackElo "2125"]
[PlyCount "125"]
[EventDate "2018.??.??"]
[TimeControl "2+30"]
[WhiteClock "0:01:44"]
[BlackClock "0:00:39"]

1. e4 {[%emt 20:18:21]} d6 {[%emt 0:00:02]} 2. d4 {[%emt 0:00:04]} Nf6 {[%emt
0:00:05]} 3. Nc3 {[%emt 0:00:04]} e5 {[%emt 0:00:06]} 4. dxe5 {[%emt 0:01:27]}
dxe5 {[%emt 0:00:06]} 5. Qxd8+ {[%emt 0:00:05]} Kxd8 {[%emt 0:00:05]} 6. Bc4 {
[%emt 0:00:06]} Ke8 {[%emt 0:00:29]} 7. Nge2 {[%emt 0:05:51]} Bd6 {[%emt 0:13:
07]} 8. f3 {[%emt 0:02:37]} Be6 {[%emt 0:03:50]} 9. Bxe6 {[%emt 0:10:33]} fxe6
{[%emt 0:00:08]} 10. Be3 {[%emt 0:00:03]} Ke7 {[%emt 0:01:15]} 11. O-O-O {
[%emt 0:01:45]} Nbd7 {[%emt 0:00:41]} 12. Nb5 {[%emt 0:03:45]} a6 {[%emt 0:01:
55]} 13. Nxd6 {[%emt 0:00:05]} cxd6 {[%emt 0:00:04]} 14. Nc3 {[%emt 0:02:14]}
Rac8 {[%emt 0:03:10]} 15. Rd2 {[%emt 0:03:53]} Rc6 {[%emt 0:01:38]} 16. Rhd1 {
[%emt 0:09:20]} Rhc8 {[%emt 0:02:38]} 17. a3 {[%emt 0:06:31]} b5 {[%emt 0:04:
40]} 18. Na2 {[%emt 0:11:30]} a5 {[%emt 0:03:20]} 19. Nc3 {[%emt 0:03:17]} Rb8
{[%emt 0:03:10]} 20. a4 {[%emt 0:08:21]} bxa4 {[%emt 0:20:48]} 21. Nxa4 {[%emt
0:00:08]} Rc4 {[%emt 0:00:39]} 22. Nc3 {[%emt 0:01:27]} Ne8 {[%emt 0:05:57]}
23. Rd3 {[%emt 0:10:51]} a4 {[%emt 0:06:29]} 24. Na2 {[%emt 0:00:39]} Rbc8 {
[%emt 0:03:01]} 25. R1d2 {[%emt 0:07:04]} Nc5 {[%emt 0:01:57]} 26. Bxc5 {[%emt
0:01:57]} R8xc5 {[%emt 0:00:09]} 27. Kb1 {[%emt 0:03:04]} Rb5 {[%emt 0:02:18]}
28. Rc3 {[%emt 0:04:26]} Rbc5 {[%emt 0:03:38]} 29. Rdd3 {[%emt 0:00:21]} Nc7 {
[%emt 0:00:36]} 30. Rxc4 {[%emt 0:00:05]} Rxc4 {[%emt 0:00:04]} 31. Rc3 {[%emt
0:00:06]} Rxc3 {[%emt 0:08:10]} 32. Nxc3 {[%emt 0:00:00]} d5 {[%emt 0:00:11]}
33. Nxa4 {[%emt 0:02:03]} Kd6 {[%emt 0:00:06]} 34. Kc1 {[%emt 0:01:41]} Kc6 {
[%emt 0:04:30]} 35. Kd2 {[%emt 0:00:48]} Kb5 {[%emt 0:00:43]} 36. Nc3+ {[%emt
0:01:38]} Kc4 {[%emt 0:00:06]} 37. Ne2 {[%emt 0:00:31]} Nb5 {[%emt 0:00:44]}
38. b3+ {[%emt 0:00:55]} Kb4 {[%emt 0:00:32]} 39. Nc1 {[%emt 0:00:29]} Kc5 {
[%emt 0:00:30]} 40. c3 {[%emt 0:00:33]} Kd6 {[%emt 0:01:14]} 41. Nd3 {[%emt 0:
00:18]} g5 {[%emt 0:03:52]} 42. g4 {[%emt 0:00:14]} Nc7 {[%emt 0:00:06]} 43. c4
{[%emt 0:01:13]} Ne8 {[%emt 0:00:58]} 44. c5+ {[%emt 0:00:40]} Kc6 {[%emt 0:00:
08]} 45. b4 {[%emt 0:00:31]} Kb5 {[%emt 0:00:18]} 46. Kc3 {[%emt 0:00:42]} dxe4
{[%emt 0:01:44]} 47. fxe4 {[%emt 0:00:00]} Nf6 {[%emt 0:00:09]} 48. Nxe5 {
[%emt 0:00:06]} Nxe4+ {[%emt 0:00:08]} 49. Kd4 {[%emt 0:00:15]} Nf6 {[%emt 0:
01:00]} 50. h3 {[%emt 0:00:49]} Kxb4 {[%emt 0:00:31]} 51. Nf7 {[%emt 0:01:01]}
Kb5 {[%emt 0:02:10]} 52. Nxg5 {[%emt 0:00:25]} h5 {[%emt 0:00:13]} 53. gxh5 {
[%emt 0:00:44]} Nxh5 {[%emt 0:00:10]} 54. Nxe6 {[%emt 0:00:07]} Kc6 {[%emt 0:
00:06]} 55. Kc4 {[%emt 0:00:24]} Nf6 {[%emt 0:00:35]} 56. h4 {[%emt 0:00:16]}
Ng4 {[%emt 0:00:38]} 57. Nd4+ {[%emt 0:00:07]} Kc7 {[%emt 0:00:08]} 58. Kd5 {
[%emt 0:00:24]} Nf6+ {[%emt 0:00:25]} 59. Ke6 {[%emt 0:00:44]} Nh5 {[%emt 0:01:
26]} 60. Kf5 {[%emt 0:00:21]} Ng3+ {[%emt 0:00:22]} 61. Kg6 {[%emt 0:00:09]}
Ne4 {[%emt 0:01:10]} 62. c6 {[%emt 0:01:20]} Kd6 {[%emt 0:00:28]} 63. h5 {
[%emt 0:00:09]} 1-0

[Event "Pohár mìsta Øíèany 2018"]
[Site "Øíèany, Czech Republic"]
[Date "2018.08.29"]
[Round "6.5"]
[White "Rodshtein, Tereza"]
[Black "Hostièka, František"]
[Result "0-1"]
[ECO "B03"]
[WhiteElo "2256"]
[BlackElo "2087"]
[PlyCount "96"]
[EventDate "2018.??.??"]
[TimeControl "2+30"]
[WhiteClock "0:40:19"]
[BlackClock "0:01:21"]

1. e4 {[%emt 0:00:01]} Nf6 {[%emt 0:01:48]} 2. e5 {[%emt 0:00:06]} Nd5 {[%emt
0:00:11]} 3. d4 {[%emt 0:00:05]} d6 {[%emt 0:00:08]} 4. c4 {[%emt 0:00:05]} Nb6
{[%emt 0:00:10]} 5. exd6 {[%emt 0:00:06]} exd6 {[%emt 0:02:00]} 6. h3 {[%emt 0:
00:08]} Bf5 {[%emt 0:04:03]} 7. Nc3 {[%emt 0:03:20]} Nc6 {[%emt 0:06:23]} 8.
Be3 {[%emt 0:04:20]} Be7 {[%emt 0:02:52]} 9. Nf3 {[%emt 0:02:05]} O-O {[%emt 0:
03:49]} 10. b3 {[%emt 0:00:54]} Nb4 {[%emt 0:01:43]} 11. Rc1 {[%emt 0:01:03]}
c6 {[%emt 0:01:41]} 12. Be2 {[%emt 0:01:22]} a5 {[%emt 0:04:44]} 13. O-O {
[%emt 0:03:15]} d5 {[%emt 0:04:18]} 14. c5 {[%emt 0:00:50]} Nd7 {[%emt 0:00:59]
} 15. a3 {[%emt 0:01:55]} Na6 {[%emt 0:00:15]} 16. Na4 {[%emt 0:01:26]} Re8 {
[%emt 0:02:05]} 17. Bd2 {[%emt 0:04:01]} Be4 {[%emt 0:05:50]} 18. Bc3 {[%emt 0:
04:20]} Bxf3 {[%emt 0:05:06]} 19. Bxf3 {[%emt 0:00:11]} Bg5 {[%emt 0:03:36]}
20. Bd2 {[%emt 0:02:21]} Nc7 {[%emt 0:02:25]} 21. Re1 {[%emt 0:03:00]} Rxe1+ {
[%emt 0:07:03]} 22. Qxe1 {[%emt 0:00:02]} Nb5 {[%emt 0:01:33]} 23. Bg4 {[%emt
0:05:28]} Nxd4 {[%emt 0:04:55]} 24. Bxg5 {[%emt 0:05:08]} Qxg5 {[%emt 0:00:20]}
25. Rd1 {[%emt 0:00:29]} Nf5 {[%emt 0:07:20]} 26. Nb6 {[%emt 0:00:11]} Nxb6 {
[%emt 0:00:51]} 27. cxb6 {[%emt 0:00:03]} Nd6 {[%emt 0:02:06]} 28. Qc3 {[%emt
0:02:08]} Ne4 {[%emt 0:04:30]} 29. Qd4 {[%emt 0:00:33]} Qf6 {[%emt 0:02:38]}
30. Qe3 {[%emt 0:03:00]} Qg5 {[%emt 0:06:43]} 31. Qd4 {[%emt 0:01:31]} f5 {
[%emt 0:02:36]} 32. Bf3 {[%emt 0:01:47]} Qf6 {[%emt 0:02:49]} 33. Qe3 {[%emt 0:
00:42]} g6 {[%emt 0:00:46]} 34. Re1 {[%emt 0:02:17]} Re8 {[%emt 0:01:26]} 35.
Qf4 {[%emt 0:02:40]} Qe5 {[%emt 0:01:50]} 36. Qe3 {[%emt 0:01:58]} Qb2 {[%emt
0:00:51]} 37. g4 {[%emt 0:04:02]} Nf6 {[%emt 0:03:28]} 38. Qxe8+ {[%emt 0:00:
26]} Nxe8 {[%emt 0:00:08]} 39. Rxe8+ {[%emt 0:00:03]} Kf7 {[%emt 0:00:17]} 40.
Rb8 {[%emt 0:00:18]} Qxb3 {[%emt 0:01:16]} 41. Rxb7+ {[%emt 0:00:06]} Kf6 {
[%emt 0:00:25]} 42. Kg2 {[%emt 0:00:55]} Kg5 {[%emt 0:01:34]} 43. gxf5 {[%emt
0:02:31]} Kf4 {[%emt 0:01:08]} 44. Be2 gxf5 {[%emt 0:00:33]} 45. Rb8 {[%emt 0:
00:46]} c5 {[%emt 0:00:39]} 46. b7 {[%emt 0:01:18]} c4 {[%emt 0:00:15]} 47. a4
{[%emt 0:00:11]} Qb2 {[%emt 0:00:45]} 48. Bf3 {[%emt 0:00:41]} Qg7+ {[%emt 0:
00:06]} 0-1

[Event "Pohár mìsta Øíèany 2018"]
[Site "Øíèany, Czech Republic"]
[Date "2018.08.29"]
[Round "6.6"]
[White "Rut, Vojtìch"]
[Black "Hrdina, Robin"]
[Result "1/2-1/2"]
[ECO "D01"]
[WhiteElo "2123"]
[BlackElo "2219"]
[PlyCount "29"]
[EventDate "2018.??.??"]
[TimeControl "2+30"]
[WhiteClock "0:55:32"]
[BlackClock "0:40:16"]

1. d4 {[%emt 0:00:29]} Nf6 {[%emt 0:00:08]} 2. Nc3 {[%emt 0:00:36]} d5 {[%emt
0:00:22]} 3. Bg5 {[%emt 0:00:16]} Nbd7 {[%emt 0:04:17]} 4. Qd3 {[%emt 0:00:34]}
c6 {[%emt 0:01:45]} 5. e4 {[%emt 0:04:01]} dxe4 {[%emt 0:00:56]} 6. Nxe4 {
[%emt 0:00:06]} Nxe4 {[%emt 0:01:07]} 7. Qxe4 {[%emt 0:00:03]} Nf6 {[%emt 0:02:
42]} 8. Bxf6 {[%emt 0:06:26]} Qa5+ {[%emt 0:00:55]} 9. c3 {[%emt 0:01:24]} gxf6
{[%emt 0:00:11]} 10. Bd3 {[%emt 0:01:38]} Be6 {[%emt 0:23:12]} 11. Ne2 {[%emt
0:02:25]} Bd5 {[%emt 0:10:23]} 12. Qf5 {[%emt 0:01:33]} Rg8 {[%emt 0:02:27]}
13. Be4 {[%emt 0:11:48]} Rg5 {[%emt 0:05:34]} 14. Qf3 {[%emt 0:04:36]} O-O-O {
[%emt 0:03:15]} 15. h4 {[%emt 0:06:21]} 1/2-1/2

[Event "Pohár mìsta Øíèany 2018"]
[Site "Øíèany, Czech Republic"]
[Date "2018.08.29"]
[Round "6.7"]
[White "Hollan, Petr"]
[Black "Blümel, Otto"]
[Result "1-0"]
[ECO "B29"]
[WhiteElo "2179"]
[BlackElo "2019"]
[PlyCount "117"]
[EventDate "2018.??.??"]
[TimeControl "2+30"]
[WhiteClock "0:01:15"]
[BlackClock "0:31:44"]

1. e4 {[%emt 0:09:52]} c5 {[%emt 0:00:25]} 2. Nf3 {[%emt 0:01:16]} Nf6 {[%emt
0:01:05]} 3. e5 {[%emt 0:00:59]} Nd5 {[%emt 0:01:49]} 4. Nc3 {[%emt 0:00:06]}
Nxc3 {[%emt 0:00:49]} 5. dxc3 {[%emt 0:00:07]} d5 {[%emt 0:00:04]} 6. Bf4 {
[%emt 0:01:29]} Nc6 {[%emt 0:01:27]} 7. Qd2 {[%emt 0:00:40]} e6 {[%emt 0:01:50]
} 8. Bd3 {[%emt 0:00:28]} h6 {[%emt 0:00:52]} 9. h4 {[%emt 0:00:20]} a6 {[%emt
0:00:12]} 10. g4 {[%emt 0:00:43]} Be7 {[%emt 0:00:28]} 11. Rg1 {[%emt 0:11:13]}
Bxh4 {[%emt 0:01:58]} 12. Nxh4 {[%emt 0:01:23]} Qxh4 {[%emt 0:00:06]} 13. O-O-O
{[%emt 0:00:33]} Qd8 {[%emt 0:00:59]} 14. Kb1 {[%emt 0:05:47]} b6 {[%emt 0:09:
05]} 15. g5 {[%emt 0:03:48]} hxg5 {[%emt 0:00:52]} 16. Bxg5 {[%emt 0:00:13]}
Qc7 {[%emt 0:00:54]} 17. f4 {[%emt 0:23:21]} Bb7 {[%emt 0:04:48]} 18. f5 {
[%emt 0:00:32]} Kd7 {[%emt 0:04:58]} 19. fxe6+ {[%emt 0:01:09]} fxe6 {[%emt 0:
00:05]} 20. Bf6 {[%emt 0:04:12]} Rag8 {[%emt 0:23:23]} 21. Bxg7 {[%emt 0:00:55]
} Kc8 {[%emt 0:03:02]} 22. Bxh8 {[%emt 0:00:14]} Rxh8 {[%emt 0:00:05]} 23. Rde1
{[%emt 0:12:26]} Kb8 {[%emt 0:03:07]} 24. Qg5 {[%emt 0:00:12]} Rf8 {[%emt 0:00:
48]} 25. Qh6 {[%emt 0:00:28]} Re8 {[%emt 0:01:39]} 26. Rg7 {[%emt 0:00:35]} Re7
{[%emt 0:00:47]} 27. Rxe7 {[%emt 0:00:02]} Qxe7 {[%emt 0:00:07]} 28. Qf6 {
[%emt 0:00:27]} Bc8 {[%emt 0:01:00]} 29. Rg1 {[%emt 0:01:49]} Qc7 {[%emt 0:00:
39]} 30. Re1 {[%emt 0:08:34]} b5 {[%emt 0:05:28]} 31. Bg6 {[%emt 0:00:34]} b4 {
[%emt 0:00:32]} 32. cxb4 {[%emt 0:00:41]} Nxb4 {[%emt 0:00:10]} 33. a3 {[%emt
0:01:25]} Nc6 {[%emt 0:00:10]} 34. Be8 {[%emt 0:02:28]} Na5 {[%emt 0:00:28]}
35. Bg6 {[%emt 0:04:44]} Qb6 {[%emt 0:00:45]} 36. Ka2 {[%emt 0:03:17]} Nc4 {
[%emt 0:00:41]} 37. Rb1 {[%emt 0:00:06]} Qc7 {[%emt 0:02:17]} 38. Bf7 {[%emt 0:
00:38]} Qxe5 {[%emt 0:00:32]} 39. Qxe5+ {[%emt 0:00:34]} Nxe5 {[%emt 0:00:06]}
40. Bxe6 {[%emt 0:00:51]} Bxe6 {[%emt 0:01:14]} 41. Re1 {[%emt 0:00:04]} Kc7 {
[%emt 0:00:10]} 42. Rxe5 {[%emt 0:00:10]} Kd6 {[%emt 0:00:04]} 43. Rg5 {[%emt
0:00:11]} d4+ {[%emt 0:00:46]} 44. Kb1 {[%emt 0:00:04]} Bc4 {[%emt 0:00:46]}
45. Kc1 {[%emt 0:00:07]} Kc6 {[%emt 0:00:06]} 46. Kd2 {[%emt 0:00:10]} Kb6 {
[%emt 0:00:06]} 47. Rg6+ {[%emt 0:01:45]} Kb5 {[%emt 0:00:12]} 48. Rf6 {[%emt
0:00:38]} Bg8 {[%emt 0:00:19]} 49. c3 {[%emt 0:00:23]} dxc3+ {[%emt 0:00:08]}
50. Kxc3 {[%emt 0:00:04]} a5 {[%emt 0:00:44]} 51. Rf8 {[%emt 0:00:21]} Bd5 {
[%emt 0:00:20]} 52. Rb8+ {[%emt 0:00:16]} Ka4 {[%emt 0:01:16]} 53. Rd8 {[%emt
0:00:56]} Bb3 {[%emt 0:00:54]} 54. Rc8 {[%emt 0:01:26]} c4 {[%emt 0:01:02]} 55.
Kd4 {[%emt 0:00:42]} Ba2 {[%emt 0:00:13]} 56. Kc3 {[%emt 0:01:09]} Bb3 {[%emt
0:00:12]} 57. Rc5 {[%emt 0:00:43]} Ba2 {[%emt 0:00:08]} 58. b4 {[%emt 0:00:18]}
cxb3 {[%emt 0:00:31]} 59. Kb2 {[%emt 0:00:03]} 1-0

[Event "Pohár mìsta Øíèany 2018"]
[Site "Øíèany, Czech Republic"]
[Date "2018.08.29"]
[Round "6.8"]
[White "Šimeèek, Bohumil"]
[Black "Svìtlý, Jiøí"]
[Result "1-0"]
[ECO "E87"]
[WhiteElo "2079"]
[BlackElo "1943"]
[PlyCount "77"]
[EventDate "2018.??.??"]
[TimeControl "2+30"]
[WhiteClock "0:07:26"]
[BlackClock "0:04:17"]

1. d4 {[%emt 0:01:10]} Nf6 {[%emt 0:49:00]} 2. c4 {[%emt 0:00:23]} g6 {[%emt 0:
00:14]} 3. Nc3 {[%emt 0:00:13]} Bg7 {[%emt 0:00:13]} 4. e4 {[%emt 0:00:13]} d6
{[%emt 0:00:15]} 5. f3 {[%emt 0:00:10]} O-O {[%emt 0:00:20]} 6. Be3 {[%emt 0:
00:22]} e5 {[%emt 0:01:17]} 7. d5 {[%emt 0:00:27]} Nbd7 {[%emt 0:00:23]} 8. Bd3
{[%emt 0:01:12]} Nc5 {[%emt 0:00:10]} 9. Bc2 {[%emt 0:00:11]} a5 {[%emt 0:00:
09]} 10. Qd2 {[%emt 0:00:40]} Bd7 {[%emt 0:08:00]} 11. Nge2 {[%emt 0:04:55]} a4
{[%emt 0:00:14]} 12. a3 {[%emt 0:02:19]} Ne8 {[%emt 0:04:32]} 13. g4 {[%emt 0:
08:47]} b5 {[%emt 0:03:02]} 14. cxb5 {[%emt 0:04:56]} Qb8 {[%emt 0:02:08]} 15.
h4 {[%emt 0:33:23]} Bxb5 {[%emt 0:00:57]} 16. Nxb5 {[%emt 0:00:18]} Qxb5 {
[%emt 0:00:07]} 17. Rb1 {[%emt 0:07:43]} Nb3 {[%emt 0:04:12]} 18. Qd3 {[%emt 0:
04:58]} Qa5+ {[%emt 0:03:04]} 19. Kf2 {[%emt 0:00:52]} Rb8 {[%emt 0:01:10]} 20.
Qc3 {[%emt 0:03:44]} Qb5 {[%emt 0:04:01]} 21. Bxb3 {[%emt 0:07:11]} Qxb3 {
[%emt 0:00:29]} 22. Qxb3 {[%emt 0:00:24]} axb3 {[%emt 0:00:56]} 23. g5 {[%emt
0:01:36]} f5 {[%emt 0:02:09]} 24. Kg2 {[%emt 0:00:05]} fxe4 {[%emt 0:03:35]}
25. fxe4 {[%emt 0:00:06]} Kf7 {[%emt 0:00:16]} 26. Rbc1 {[%emt 0:00:56]} Ke7 {
[%emt 0:02:00]} 27. Rc3 {[%emt 0:02:06]} Kd7 {[%emt 0:04:55]} 28. Nc1 {[%emt 0:
01:51]} Rf4 {[%emt 0:01:02]} 29. Bxf4 {[%emt 0:00:33]} exf4 {[%emt 0:00:06]}
30. Rxb3 {[%emt 0:00:05]} Rxb3 {[%emt 0:00:17]} 31. Nxb3 {[%emt 0:00:05]} Bxb2
{[%emt 0:00:06]} 32. a4 {[%emt 0:00:20]} c6 {[%emt 0:00:12]} 33. dxc6+ {[%emt
0:01:15]} Kxc6 {[%emt 0:00:10]} 34. Kf3 {[%emt 0:00:11]} Be5 {[%emt 0:01:47]}
35. h5 {[%emt 0:02:14]} d5 {[%emt 0:01:00]} 36. hxg6 {[%emt 0:00:55]} hxg6 {
[%emt 0:00:44]} 37. Rc1+ {[%emt 0:04:26]} Kd6 {[%emt 0:00:30]} 38. Rd1 {[%emt
0:00:14]} Ng7 {[%emt 0:01:01]} 39. Rxd5+ {[%emt 0:00:33]} 1-0